[Event "44th Chess Olympiad Open 2022"]
[Site "Chennai"]
[Date "2022.07.29"]
[Round "1.6"]
[White "Brahami, Lamine"]
[Black "Guseinov, Gadir"]
[Result "0-1"]
[WhiteElo "2189"]
[BlackElo "2668"]
[Annotator "TA"]
[PlyCount "104"]
[EventDate "2022.??.??"]
[TimeControl "60"]

{[%evp 19,104,0,0,-7,0,-14,17,0,62,58,102,103,87,88,87,94,154,129,132,132,122,
125,116,117,118,115,115,118,117,108,113,107,149,160,173,182,217,219,229,207,
247,230,204,0,0,0,0,0,0,-17,-19,-34,-18,-38,0,-1808,0,0,0,0,0,0,0,0,0,0,0,0,0,
0,0,0,0,-8,-8,-383,-380,-323,-305,-812,-868,-5518,-5409,-2177,-1773,-6095,
-5218]} 1. d4 {[%emt 0:00:09]} Nf6 {[%emt 0:00:10]} 2. Nf3 {[%emt 0:00:58]} d6
{[%emt 0:04:02]} 3. Bf4 {[%emt 0:02:31]} g6 {[%emt 0:02:26]} 4. e3 {[%emt 0:00:
00]} Bg7 {[%emt 0:00:50]} 5. h3 {[%emt 0:00:38]} O-O {[%emt 0:00:20]} 6. Be2 {
[%emt 0:00:22]} Nbd7 {[%emt 0:00:16]} 7. O-O {[%emt 0:00:55]} b6 {[%emt 0:00:
00]} 8. c4 {[%emt 0:01:46]} Bb7 {[%emt 0:00:11]} 9. Nc3 {[%emt 0:00:12]} Ne4 $1
{[%emt 0:09:19] The main line 9...Ne4 scores better than 9...Re8.} 10. Nxe4 {
[%emt 0:11:57]} Bxe4 {[%emt 0:00:10]} 11. Rc1 {[%emt 0:00:47] E61: King's
Indian: Early deviations for White, including Smyslov System.} e5 {[%emt 0:00:
00]} 12. Bh2 {[%emt 0:13:50]} Bb7 $5 {[%emt 0:05:29] An interesting side line.}
13. b4 {[%emt 0:08:29] [#] The position is equal.} a5 $146 {[%emt 0:02:03]} (
13... c5 $11) ({Predecessor:} 13... Qe7 14. Qc2 exd4 15. Nxd4 a5 16. a3 axb4
17. axb4 Be5 18. Rfd1 c5 19. bxc5 Bxh2+ 20. Kxh2 dxc5 21. Nb5 Nf6 22. Kg1 Ne4
23. Bf3 Rfd8 24. Rxd8+ Rxd8 25. Rd1 Rxd1+ {½-½ (25) Kawagoe, T (1847)
-Husemann,A (2050) LSS email 2013}) 14. c5 $1 $14 {[%emt 0:06:35][%cal Yc4c5,
Yc5c6] And now c6 would win.} e4 {[%emt 0:02:02] [#]} (14... axb4 $2 15. c6
Bxc6 16. Rxc6 $18) 15. c6 $1 {[%emt 0:14:25]} (15. Nd2 bxc5 16. bxc5 dxc5 $14)
15... exf3 {[%emt 0:16:38]} 16. Bxf3 {[%emt 0:04:04]} Ba6 {[%emt 0:04:44]} 17.
cxd7 {[%emt 0:02:42]} Rb8 {[%emt 0:20:35]} (17... Ra7 $142) 18. Re1 {[%emt 0:
07:42]} (18. b5 Bxb5 19. Bc6 Bxc6 20. Rxc6 Rb7 $16) 18... Qxd7 {[%emt 0:07:25]}
19. Qc2 {[%emt 0:12:14]} Rfc8 {[%emt 0:09:27]} 20. Bc6 {[%emt 0:01:13]} Qe7 {
[%emt 0:00:48]} 21. b5 {[%emt 0:00:41]} Bb7 {[%emt 0:00:00]} 22. Bxb7 {[%emt 0:
00:34]} Rxb7 {[%emt 0:00:01]} 23. Qc6 $36 {[%emt 0:00:00] White has strong
initiative.} Rcb8 {[%emt 0:00:12]} 24. Rc4 {[%emt 0:00:52]} Ra7 {[%emt 0:00:24]
} 25. a4 {[%emt 0:00:44]} f5 {[%emt 0:01:33]} 26. e4 {[%emt 0:05:26][%cal
Ye3e4,Ye4e5]} Rf8 {[%emt 0:05:20]} 27. e5 {[%emt 0:02:06]} f4 {[%emt 0:00:00]}
28. Re4 {[%emt 0:00:44]} g5 {[%emt 0:00:00]} 29. h4 {[%emt 0:00:26]} h6 {
[%emt 0:00:26]} 30. exd6 {[%emt 0:00:22]} Qxd6 {[%emt 0:00:06]} 31. Qxd6 {
[%emt 0:00:21]} (31. hxg5 $18 {[%cal Yh2f4] aiming for Bxf4!} hxg5 32. g3)
31... cxd6 $11 {[%emt 0:00:01][%cal Yc7d6,Yd6d5]} 32. Rc6 {[%emt 0:00:42][%csl
Yb6,Yd6]} d5 {[%emt 0:00:23]} 33. Re1 {[%emt 0:00:18]} Bxd4 {[%emt 0:00:29]}
34. Rxh6 {[%emt 0:00:47]} g4 $1 {[%emt 0:00:09] Hoping for ...g3.} 35. Rd1 {
[%emt 0:00:34]} Bc5 {[%emt 0:00:29]} 36. Kh1 {[%emt 0:00:32]} ({Avoid the trap
} 36. Rxd5 $2 g3 37. Rd1 gxh2+ 38. Kxh2 Bxf2 $19) 36... Bxf2 {[%emt 0:00:45]}
37. Rxd5 $2 {[%emt 0:00:26] [#]} (37. Bg1 $11 g3 38. Bxf2 (38. Rxd5 $2 Rh7 $19)
38... gxf2 39. Rf1 (39. Rxb6 $2 Re7 $19)) 37... Rg7 $2 {[%emt 0:01:03]} (37...
g3 $1 $19 {( -> ... Re8)} 38. Bg1 Rh7 39. Rg6+ Kh8) 38. Rdh5 $1 {[%emt 0:00:32]
Strongly threatening Rh8+.} Rgf7 {[%emt 0:03:31]} 39. Rg5+ {[%emt 0:00:12]} Rg7
{[%emt 0:00:04]} 40. Rgh5 {[%emt 0:00:02]} Rgf7 {[%emt 0:00:53]} 41. Rg5+ {
[%emt 0:30:48]} Rg7 {[%emt 0:30:08]} 42. Rhg6 {[%emt 0:00:57]} Rxg6 {[%emt 0:
00:00]} 43. Rxg6+ {[%emt 0:00:07] Endgame KRB-KRB} Kh7 {[%emt 0:00:00]} 44.
Rxg4 {[%emt 0:00:05]} Be3 {[%emt 0:00:32]} 45. Bg1 {[%emt 0:01:03] Black must
now prevent Bxe3.} Re8 {[%emt 0:00:01]} 46. Bh2 {[%emt 0:00:47]} Re4 {[%emt 0:
00:09]} 47. g3 $2 {[%emt 0:00:28]} (47. Bg1 $11 {and White has nothing to
worry.} Rb4 48. Kh2) 47... Rxa4 $19 {[%emt 0:00:04]} 48. gxf4 {[%emt 0:00:08]}
Rb4 {[%emt 0:00:11]} 49. Kg2 $2 {[%emt 0:00:52]} (49. Rg5 a4 50. Re5) 49... a4
{[%emt 0:00:02][%cal Ya5a4,Ya4a3,Ya3a2] ...a3 is the strong threat. Black is
clearly winning.} 50. Rg3 {[%emt 0:00:33]} Rb2+ {[%emt 0:00:26]} 51. Kf3 {
[%emt 0:00:30] [#]} a3 $1 {[%emt 0:00:11]} 52. Bg1 {[%emt 0:00:31]} (52. Kxe3
a2) 52... a2 {[%emt 0:00:29] A wild game. Weighted Error Value: White=0.76/
Black=0.20 (precise)} 0-1

[Event "44th Chess Olympiad Open 2022"]
[Site "Chennai"]
[Date "2022.07.29"]
[Round "1.6"]
[White "Bengherabi, Khalil"]
[Black "Abasov, Nijat"]
[Result "0-1"]
[WhiteElo "2097"]
[BlackElo "2633"]
[Annotator "TA"]
[PlyCount "122"]
[EventDate "2022.??.??"]
[TimeControl "60"]

{[%evp 19,122,0,0,0,14,9,13,14,28,27,31,20,23,35,35,0,10,-6,-13,-9,0,0,2,0,0,0,
0,0,0,0,0,0,0,-18,-16,-14,-14,-18,35,0,0,0,0,-131,-141,-192,-181,-185,-188,
-187,-195,-186,-194,-170,-183,-176,-41,-41,-41,-41,-52,-333,-209,-547,-539,
-533,-525,-550,-550,-550,-512,-544,-540,-538,-421,-421,-421,-553,-370,-536,
-501,-689,-689,-667,-666,-652,-638,-600,-590,-4810,-4356,-4676,-4512,-2254,
-1669,-1432,-835,-1754,-1375,-1681,-1863,-5397,-5287,-2884,-1432]} 1. e4 {
[%emt 0:00:14]} c5 {[%emt 0:00:09]} 2. Nf3 {[%emt 0:00:05][%cal Yg1f3,Yf3d4,
Yd4b3,Yb3d2,Yd2f1,Yf1e3]} d6 {[%emt 0:00:14]} 3. d4 {[%emt 0:00:05]} cxd4 {
[%emt 0:00:10]} 4. Nxd4 {[%emt 0:00:32]} Nf6 {[%emt 0:00:10]} 5. Nc3 {[%emt 0:
00:08]} a6 {[%emt 0:00:07]} 6. g3 {[%emt 0:00:03]} e5 {[%emt 0:00:30]} 7. Nb3 {
[%emt 0:00:04]} Be7 {[%emt 0:00:12]} 8. Bg2 {[%emt 0:00:12]} O-O {[%emt 0:00:
24]} 9. O-O {[%emt 0:00:50]} Be6 {[%emt 0:00:26]} 10. a4 {[%emt 0:00:00]} Nbd7
{[%emt 0:02:09]} 11. Re1 {[%emt 0:00:22] B91: Sicilian Najdorf: 6 g3.} Qc7 $1 {
[%emt 0:01:06] is recently more successful than 11...Rc8.} 12. Nd2 {[%emt 0:00:
15]} Qc5 {[%emt 0:11:57]} 13. Nf1 {[%emt 0:08:09] The position is equal.} Rfc8
{[%emt 0:02:33]} 14. Ne3 {[%emt 0:03:55]} Bd8 {[%emt 0:05:55] [#]} 15. Ncd5
$146 {[%emt 0:05:29]} ({Predecessor:} 15. Qd3 Ba5 16. Rd1 Bxc3 17. bxc3 Qxc3
18. Qxc3 Rxc3 19. Rxd6 Rac8 20. Rb1 R3c7 21. Ba3 {1-0 (41) Sengupta,D (2435)
-Feller,S (2478) Banyoles 2007}) 15... Bxd5 {[%emt 0:00:00]} 16. exd5 {[%emt 0:
04:43]} b5 {[%emt 0:00:34]} 17. b3 {[%emt 0:20:20]} Ba5 {[%emt 0:04:53] And
now ...Qc3 would win.} 18. Bd2 {[%emt 0:05:25] Against Qc3} Bxd2 {[%emt 0:01:
51]} 19. Qxd2 {[%emt 0:00:14]} g6 {[%emt 0:00:16] Prevents Nf5.} 20. Red1 {
[%emt 0:16:00]} h5 {[%emt 0:07:07]} 21. axb5 {[%emt 0:00:00]} axb5 {[%emt 0:00:
31]} 22. b4 {[%emt 0:00:26]} Qb6 {[%emt 0:06:12]} 23. Ra5 {[%emt 0:00:19]} Rxa5
{[%emt 0:01:35]} 24. bxa5 {[%emt 0:00:05]} Qc5 {[%emt 0:03:38]} 25. Rb1 {
[%emt 0:00:18]} Ra8 {[%emt 0:02:32]} 26. Bf1 {[%emt 0:00:00]} Ne4 {[%emt 0:02:
38]} 27. Qb4 {[%emt 0:01:33]} Nc3 {[%emt 0:03:18]} 28. Qxc5 {[%emt 0:00:51]}
dxc5 {[%emt 0:00:22]} (28... Nxc5 $11 29. Ra1 Kf8) 29. Ra1 {[%emt 0:01:16]} (
29. Rxb5 $5 Nxb5 30. Bxb5 $11) 29... c4 {[%emt 0:01:30]} 30. a6 {[%emt 0:00:29]
} Nc5 {[%emt 0:00:51]} 31. a7 {[%emt 0:00:33]} (31. d6 $11 {keeps the balance.}
) 31... N5a4 $17 {[%emt 0:00:10] Black is more active. Pair of Knights!} 32.
Nd1 {[%emt 0:00:28]} (32. g4 $17 {was called for.}) 32... Nxd1 $19 {[%emt 0:00:
41]} 33. Rxd1 {[%emt 0:00:04] aiming for d6.} Rxa7 {[%emt 0:00:20] Endgame
KRB-KRN} 34. d6 {[%emt 0:00:20] [#]} Rd7 $1 {[%emt 0:00:38] White must now
prevent ...Nc3.} 35. Bg2 {[%emt 0:00:34]} Nc3 {[%emt 0:00:07]} 36. Bc6 {
[%emt 0:00:12]} Rd8 {[%emt 0:01:22]} ({But not} 36... Nxd1 37. Bxd7 Nc3 {[#]}
38. Bxb5 $1 $16) 37. Rd2 {[%emt 0:00:17]} e4 {[%emt 0:00:00]} (37... b4 $19 {
Hoping for ...Kf8.} 38. Kf1 Kf8) 38. Kf1 $15 {[%emt 0:00:00]} Kg7 {[%emt 0:00:
09]} 39. Ke1 {[%emt 0:01:08]} Kf6 {[%emt 0:00:14]} 40. f4 {[%emt 0:00:31] This
costs White the game.} (40. h4 $15) 40... exf3 {[%emt 0:02:57]} 41. Kf2 $2 {
[%emt 0:30:31]} (41. d7 {is a better chance.}) 41... Ke5 $19 {[%emt 0:30:13]}
42. d7 {[%emt 0:00:00]} Ne4+ {[%emt 0:00:00]} 43. Bxe4 {[%emt 0:00:00]} Kxe4 {
[%emt 0:00:00] KR-KR} 44. c3 {[%emt 0:00:00]} Ke5 {[%emt 0:00:00]} 45. Kxf3 {
[%emt 0:00:00]} Ke6 {[%emt 0:00:00]} 46. Rb2 {[%emt 0:00:00]} Rxd7 {[%emt 0:00:
00]} 47. Rxb5 {[%emt 0:00:00]} Rd3+ {[%emt 0:00:00]} 48. Ke4 {[%emt 0:00:00]}
Rxc3 {[%emt 0:00:00]} 49. Rc5 {[%emt 0:00:00]} (49. Rb6+ $142 Ke7 50. Rb2)
49... Rc2 {[%emt 0:00:00] Black is clearly winning.} 50. h4 {[%emt 0:00:00]}
Rc3 {[%emt 0:00:00]} 51. Kf4 {[%emt 0:00:00]} Rc1 {[%emt 0:00:00]} 52. Ke4 {
[%emt 0:00:00]} Kd6 {[%emt 0:00:00] Prevents Rc6+.} 53. Rc8 {[%emt 0:00:00]}
Re1+ {[%emt 0:00:00]} 54. Kf3 {[%emt 0:00:00]} Kd5 {[%emt 0:00:00]} 55. Rc7 {
[%emt 0:00:00]} Kd4 {[%emt 0:00:00]} 56. Rd7+ {[%emt 0:00:39]} Kc3 {[%emt 0:00:
00]} 57. Kg2 {[%emt 0:07:09]} Re2+ {[%emt 0:00:00]} 58. Kf3 {[%emt 0:00:35]}
Re5 {[%emt 0:00:00]} 59. Kf4 {[%emt 0:00:31]} Re1 {[%emt 0:00:00] Threatens to
win with ...Kc2.} 60. Kg5 {[%emt 0:00:28]} Rf1 {[%emt 0:00:00]} 61. Rc7 {
[%emt 0:00:19]} Kd3 {[%emt 0:00:00] Weighted Error Value: White=0.47/Black=0.
18 (very precise)} 0-1

[Event "44th Chess Olympiad Open 2022"]
[Site "Chennai"]
[Date "2022.07.29"]
[Round "1.7"]
[White "L'Ami, Erwin"]
[Black "Ahmad, Al Khatib"]
[Result "1-0"]
[WhiteElo "2634"]
[BlackElo "2244"]
[Annotator "TA"]
[PlyCount "144"]
[EventDate "2022.??.??"]
[TimeControl "60"]

{[%evp 11,144,8,8,12,10,6,12,1,10,12,0,0,0,0,0,8,19,15,40,0,0,-4,8,10,17,0,0,0,
10,6,14,-8,-8,-8,-10,-8,-6,-14,6,-12,66,66,71,56,68,48,33,10,0,0,0,5,56,5,6,5,
79,79,79,87,87,87,123,126,713,663,766,679,6760,6106,5216,5216,5216,4698,3218,
2987,2197,47,1045,0,1129,962,511,456,29936,29938,29940,29941,11887,5583,29949,
29950,29955,29952,29949,11193,1133,178,1454,1457,251,993,479,447,351,329,29957,
29959,29950,206,29961,29960,29962,29965,29964,29966,29964,29967,29968,29969,
29969,29970,29971,29972,29972,29972,29973,29977,29977,29978,29978,29979,29978,
29974,4723]} 1. e4 {[%emt 0:12:19]} c6 {[%emt 0:00:14]} 2. Nc3 {[%emt 0:00:21]}
d5 {[%emt 0:00:08]} 3. Nf3 {[%emt 0:00:07]} Bg4 {[%emt 0:00:09]} 4. h3 {
[%emt 0:00:14]} Bxf3 {[%emt 0:00:08]} 5. Qxf3 {[%emt 0:00:07]} e6 {[%emt 0:00:
00]} 6. g3 {[%emt 0:02:04]} Nf6 {[%emt 0:01:05]} 7. Bg2 {[%emt 0:00:21] B11:
Caro-Kann: Two Knights Variation.} Bc5 {[%emt 0:01:25] Recently 7...Bb4 got a
lot of attention.} 8. O-O {[%emt 0:03:12]} O-O 9. d3 {[%emt 0:01:37] The
position is equal.} Nbd7 {[%emt 0:02:01]} 10. Qe2 {[%emt 0:01:31]} a5 {[%emt 0:
00:00]} 11. a4 {[%emt 0:02:11]} Qb6 {[%emt 0:04:16]} 12. Kh2 {[%emt 0:04:41] 
[#]} dxe4 $146 {[%emt 0:01:16]} ({Predecessor:} 12... Rad8 13. e5 Ne8 14. Bd2
Nc7 15. f4 Rde8 16. Rab1 f6 17. Na2 fxe5 18. b4 axb4 19. Nxb4 {0-1 (34)
Mickiewicz,P (2233)-Rakotomaharo,F (2422) Chess.com INT 2020}) 13. dxe4 {
[%emt 0:00:24]} e5 {[%emt 0:00:57]} 14. Nd1 {[%emt 0:05:19]} Qa6 {[%emt 0:00:
00]} 15. Re1 {[%emt 0:10:05]} Qxe2 {[%emt 0:09:04]} 16. Rxe2 {[%emt 0:00:08]}
b5 {[%emt 0:11:47]} 17. Bd2 {[%emt 0:11:14]} b4 {[%emt 0:10:35]} 18. Ne3 {
[%emt 0:05:53]} Nb6 {[%emt 0:02:10] Prevents Nc4.} 19. b3 {[%emt 0:03:07]} Bd4
$1 {[%emt 0:04:42] Against c3} 20. Rc1 {[%emt 0:04:27]} g6 {[%emt 0:05:20]} 21.
f3 {[%emt 0:02:05][%cal Yf2f3,Yf3f4,Yf4e5]} c5 {[%emt 0:03:32][%cal Yc5c4]} 22.
c3 {[%emt 0:01:37]} bxc3 {[%emt 0:02:29]} 23. Bxc3 {[%emt 0:00:07]} Rfb8 {
[%emt 0:02:03]} 24. Be1 {[%emt 0:03:54]} Ne8 {[%emt 0:02:50][%cal Yf6e8,Ye8c7,
Yc7e6]} 25. f4 {[%emt 0:13:13]} Rc8 {[%emt 0:08:00]} (25... Ra7 $11) 26. fxe5
$14 {[%emt 0:03:03]} Bxe3 {[%emt 0:02:06]} 27. Rxe3 {[%emt 0:00:00]} c4 $1 {
[%emt 0:00:12]} 28. Ra1 {[%emt 0:04:27] White is more active.} Nc7 {[%emt 0:05:
24]} 29. Bf1 {[%emt 0:05:42]} Ne6 {[%emt 0:00:23]} 30. Ra2 {[%emt 0:01:38]}
cxb3 $1 {[%emt 0:04:00]} ({But not} 30... Nd4 31. bxc4 Rc7 32. Bf2 $16) 31.
Rxb3 {[%emt 0:00:10]} Rc1 {[%emt 0:00:31] [#]} (31... Nxa4 $11 32. Re3 (32.
Rxa4 Nc5 $11) 32... Nac5) 32. Rxb6 {[%emt 0:06:15]} (32. Bd2 $1 $14 Rxf1 33.
Kg2 (33. Rxb6 Rf2+ 34. Kg1 Re2 $11)) 32... Rxe1 $11 {[%emt 0:00:04]} 33. Bc4
$36 {[%emt 0:00:07] White has good play.} Rc8 {[%emt 0:00:00]} (33... Ra7 $11)
34. Bxe6 $16 {[%emt 0:01:40] Black is on the road to losing.} fxe6 {[%emt 0:00:
06]} 35. Rxe6 {[%emt 0:00:04]} Rxe4 {[%emt 0:00:36] Endgame KRR-KRR} 36. Re7 {
[%emt 0:00:04]} Rcc4 {[%emt 0:00:52]} 37. h4 $1 {[%emt 0:02:00] Rb2 is the
strong threat.} Rxa4 $2 {[%emt 0:00:28]} (37... h5 $16) 38. Rf2 $18 {[%emt 0:
00:01] Black must now prevent e6.} Rab4 {[%emt 0:00:39]} 39. Rff7 {[%emt 0:03:
56] And now Rg7+ would win.} Rxe5 {[%emt 0:00:33]} 40. Rg7+ {[%emt 0:00:06]}
Kf8 {[%emt 0:00:30] [#]} 41. Ref7+ $1 {[%emt 0:00:06]} Ke8 {[%emt 0:00:31]} 42.
Ra7 {[%emt 0:00:06][%cal Rg7g8]} Kf8 {[%emt 0:04:08] Inhibits Rg8+.} 43. Rxh7 {
[%emt 0:01:17][%cal Rh7h8]} Kg8 {[%emt 0:03:29] Inhibits Rh8+.} 44. Rag7+ {
[%emt 0:00:11]} (44. Rhg7+ $142 Kf8 45. Rxg6) 44... Kf8 {[%emt 0:00:07]} 45.
Ra7 {[%emt 0:00:47][%cal Rh7h8]} Kg8 {[%emt 0:01:58] Inhibits Rh8+.} 46. Rhg7+
{[%emt 0:00:07]} Kf8 {[%emt 0:05:45]} 47. Rxg6 {[%emt 0:00:16]} a4 {[%emt 0:02:
18]} (47... Rbb5 $18 48. Rf6+ Kg8) 48. Rf6+ {[%emt 0:02:44]} Kg8 {[%emt 0:00:
24]} 49. Kh3 {[%emt 0:00:27]} Rc5 {[%emt 0:07:11]} 50. Rd6 {[%emt 0:00:37]
[%cal Rd6d8]} Rc8 {[%emt 0:00:25] Prevents Rd8+.} 51. h5 {[%emt 0:01:30]} Kh8 {
[%emt 0:03:01]} 52. Rdd7 {[%emt 0:00:00]} Rb5 {[%emt 0:02:50]} 53. g4 {[%emt 0:
03:01]} (53. Kh4 $142 Rb4+ 54. g4 Rb1 55. Rd6 Rbc1 56. Rxa4 R8c7 57. Rad4 Rh1+
58. Kg5 Rg7+ 59. Rg6) 53... Rb1 {[%emt 0:03:42]} 54. Rxa4 $2 {[%emt 0:02:11]} (
54. Kh4 Rh1+ 55. Kg5 Rc5+ 56. Kf4 Rf1+ 57. Kg3 Rg1+ 58. Kh3 Rc3+ 59. Kh4) 54...
Rc3+ $2 {[%emt 0:00:45]} (54... Rg8 55. Rd5 Rg1) 55. Kh4 {[%emt 0:00:08]} Rh1+
{[%emt 0:00:16]} 56. Kg5 {[%emt 0:00:06]} Rc5+ {[%emt 0:00:14]} 57. Kf4 {
[%emt 0:00:30] Ra8+ would kill now.} Rf1+ {[%emt 0:00:34]} 58. Kg3 {[%emt 0:00:
08] Intending Ra8+ and mate.} Rc3+ {[%emt 0:01:06] [#]} 59. Kg2 $1 {[%emt 0:00:
25]} Rf8 {[%emt 0:00:08]} 60. Rad4 $2 {[%emt 0:02:26]} (60. Raa7 {mates} Rb8
61. Rh7+ Kg8 62. Rhg7+ Kh8 63. Rh7+ Kg8 64. Rag7+ Kf8 65. Rb7) 60... Rb8 $2 {
[%emt 0:00:36]} (60... Rff3 $18 61. Re7 Rg3+ 62. Kf2 Rcf3+ 63. Ke1 Rf8) 61. Rd3
{[%emt 0:02:57] White mates.} Rbb3 {[%emt 0:01:10]} 62. Rxc3 {[%emt 0:00:33]}
Rxc3 {[%emt 0:00:02] KR-KR} 63. Rf7 {[%emt 0:00:19]} Kg8 {[%emt 0:00:37]} 64.
Rf3 {[%emt 0:00:11]} Rc1 {[%emt 0:00:45]} 65. Kg3 {[%emt 0:00:14]} Kh7 {
[%emt 0:00:34]} 66. Kh4 {[%emt 0:00:00]} Rc5 {[%emt 0:00:36]} 67. Rf7+ {
[%emt 0:00:08]} Kg8 {[%emt 0:00:30]} 68. Rf5 {[%emt 0:00:37]} Rc7 {[%emt 0:00:
29]} 69. h6 {[%emt 0:00:35]} Kh7 {[%emt 0:00:00]} 70. Kh5 {[%emt 0:00:07]} Rc1
{[%emt 0:00:31]} 71. Rf7+ {[%emt 0:00:09]} Kg8 {[%emt 0:00:26]} 72. Rg7+ {
[%emt 0:00:14]} Kh8 {[%emt 0:00:19] Weighted Error Value: White=0.54/Black=0.48
} 1-0

[Event "44th Chess Olympiad Open 2022"]
[Site "Chennai"]
[Date "2022.07.29"]
[Round "1.7"]
[White "Warmerdam, Max"]
[Black "Ibrahim Alwahsh"]
[Result "1-0"]
[WhiteElo "2610"]
[BlackElo "2058"]
[Annotator "TA"]
[PlyCount "75"]
[EventDate "2022.??.??"]
[TimeControl "60"]

{[%evp 9,74,25,24,38,21,24,37,29,33,18,12,-45,89,83,95,87,107,105,95,111,111,
112,148,140,134,137,133,136,137,123,275,281,284,282,373,359,368,375,412,400,
461,437,428,417,375,367,416,400,432,432,432,416,385,406,529,517,579,569,804,
794,833,740,948,1078,2736,825,29999]} 1. d4 {[%emt 0:00:08] Fernandez,D} Nf6 {
[%emt 0:00:13]} 2. c4 {[%emt 0:00:06]} g6 {[%emt 0:00:10]} 3. g3 {[%emt 0:00:
00]} Bg7 {[%emt 0:00:09]} 4. Bg2 {[%emt 0:00:06]} O-O {[%emt 0:00:09]} 5. Nc3 {
[%emt 0:00:05]} c5 {[%emt 0:05:41]} 6. dxc5 {[%emt 0:01:06] E61: King's Indian:
Early deviations for White, including Smyslov System.} Qa5 {[%emt 0:00:39]} 7.
Qa4 {[%emt 0:02:46]} Qxc5 {[%emt 0:00:58]} 8. Be3 {[%emt 0:00:08] White is
slightly better.} Qc7 {[%emt 0:03:46]} 9. c5 $5 {[%emt 0:12:32] [#] A
promising side line.} Na6 $146 {[%emt 0:18:37]} ({Predecessor:} 9... Nc6 10.
Rd1 b6 11. cxb6 Qb8 12. bxa7 Qxb2 13. Nb5 Bb7 14. Qb3 Qxb3 15. axb3 Nxa7 16.
Bxb7 {1-0 (62) So,W (2792)-Jones,G (2640) Wijk aan Zee 2018 CBM 183 [Fernandez,
D]}) 10. Rc1 {[%emt 0:04:41]} (10. Qb5 $11) 10... Qd8 {[%emt 0:16:00]} (10...
Nxc5 $15 11. Qh4 d6) 11. Nf3 $16 {[%emt 0:05:50]} d6 {[%emt 0:04:01]} 12. cxd6
{[%emt 0:04:44]} exd6 {[%emt 0:01:26]} 13. O-O {[%emt 0:00:15]} Bd7 {[%emt 0:
00:00]} 14. Qa3 {[%emt 0:03:06]} Bc6 {[%emt 0:00:54]} 15. Rfd1 {[%emt 0:00:11]}
Ne8 {[%emt 0:08:52]} 16. Nd5 {[%emt 0:04:11]} Nac7 {[%emt 0:06:43]} 17. Bg5 {
[%emt 0:01:30]} f6 {[%emt 0:08:40]} 18. Nxc7 {[%emt 0:00:10] 0x0.
00168747d246dp-1022s more active pieces.} Qxc7 {[%emt 0:01:48]} 19. Be3 {
[%emt 0:03:05] Hoping for Nd4.} Qe7 $2 {[%emt 0:01:24] [#] A mistake that
costs the game.} (19... Qf7 $16 {was called for.} 20. Qa5 Qd7) 20. Rxc6 $1 $18
{[%emt 0:03:59]} bxc6 {[%emt 0:00:19]} 21. Nd4 {[%emt 0:00:04]} Rc8 {[%emt 0:
05:24]} 22. Nxc6 {[%emt 0:00:11]} Qd7 {[%emt 0:00:44]} 23. Nxa7 {[%emt 0:00:51]
} Rb8 {[%emt 0:01:11]} 24. b4 {[%emt 0:01:13][%cal Yb2b4,Yb4b5]} f5 {[%emt 0:
00:49]} 25. Bc6 {[%emt 0:05:03] A strong pair of Bishops.} Qc7 {[%emt 0:04:32]}
26. b5 {[%emt 0:00:19] Black must now prevent Qb3+.} Nf6 {[%emt 0:00:44]} 27.
Qxd6 {[%emt 0:03:28]} Qa5 {[%emt 0:02:14]} 28. Bd5+ {[%emt 0:00:10]} Nxd5 {
[%emt 0:02:14]} 29. Qxd5+ {[%emt 0:00:05]} Kh8 {[%emt 0:00:12]} 30. Nc6 {
[%emt 0:00:05] Inhibits Rbd8.} Qxb5 {[%emt 0:00:57]} 31. Nxb8 {[%emt 0:00:06]}
Qxb8 {[%emt 0:00:21]} 32. a4 {[%emt 0:00:14]} Qb2 {[%emt 0:01:55]} 33. Qb5 {
[%emt 0:00:27]} Qa2 {[%emt 0:00:35]} 34. Rd7 {[%emt 0:00:00]} h6 {[%emt 0:01:
59]} 35. h4 {[%emt 0:01:16]} Qe6 {[%emt 0:00:41]} 36. Qb7 {[%emt 0:00:15]} Be5
{[%emt 0:01:44]} 37. Bxh6 {[%emt 0:00:33]} (37. Re7 $142 Qa2 38. Bxh6) 37...
Rg8 {[%emt 0:00:09]} 38. Rh7# {[%emt 0:00:05] Weighted Error Value: White=0.09
(flawless) /Black=0.61} 1-0